bitfinex/quotes_ETHUSD_20250131
["timestamp","ask_amount","ask_price","bid_price","bid_amount"]
[1738314803756,0.06368424,3240.1,3239.8,3.11745286]
[1738314804066,0.06368424,3240.0,3239.8,3.11745286]
[1738314804266,0.06368424,3240.0,3239.8,0.03086286]
[1738314804469,3.08613,3240.3,3239.6,3.08673]
[1738314804638,0.06368424,3239.9,3239.5,3.88354]
[1738314804837,6.17259,3240.2,3239.5,3.88354]
[1738314805058,0.06368424,3239.8,3239.5,3.08684]
[1738314805249,0.757,3239.9,3239.5,3.08684]
[1738314805552,0.06370912,3239.7,3239.5,3.08684]
[1738314805956,0.757,3239.9,3239.5,3.08684]
[1738314806168,0.06369419,3239.6,3239.5,3.08684]
[1738314806345,0.757,3239.9,3239.5,3.08684]
[1738314806551,0.06369419,3239.6,3239.5,3.08684]
[1738314806874,0.757,3239.9,3239.5,3.08684]
[1738314807237,0.06360462,3239.8,3239.5,3.08684]
[1738314808271,0.8282,3240.2,3239.6,3.08674]
[1738314808452,0.8282,3240.2,3239.7,3.92655364]
[1738314808653,0.06359466,3240.1,3239.7,3.92655364]
[1738314809966,0.06359466,3240.1,3239.5,3.08684]
[1738314810167,3.91445,3240.2,3239.6,3.08674]
[1738314810558,0.06359466,3240.1,3239.6,3.08674]
[1738314810969,0.06359466,3240.1,3239.4,5.37]
[1738314811173,3.14997466,3240.1,3239.5,3.08688]
[1738314811375,3.0866,3239.9,3239.4,5.37]
[1738314811576,3.08662,3239.8,3239.2,0.774]
[1738314811767,3.08662,3239.8,3239.2,3.86116]
[1738314811964,0.06359466,3239.7,3239.0,5.37]
[1738314812171,3.15035466,3239.7,3239.0,9.2491]
[1738314812548,3.15035466,3239.7,3239.0,6.1618]
[1738314812749,3.15035466,3239.7,3239.1,3.08726]
[1738314813480,3.15035466,3239.7,3239.1,3.11812821]
[1738314814081,3.15035466,3239.7,3239.1,3.08726]
[1738314814381,3.15035466,3239.7,3239.1,6.20532821]
[1738314815061,3.15035466,3239.7,3239.1,3.0872]
[1738314815260,0.7931,3239.5,3239.1,3.0872]
[1738314815662,0.06359466,3239.4,3239.1,3.0872]
[1738314815981,3.15060466,3239.4,3239.0,5.37]
[1738314816221,0.7581,3239.2,3238.6,3.08767]
[1738314816360,0.7581,3239.2,3238.8,3.08752]
[1738314816764,0.06324629,3239.1,3238.8,3.08752]
[1738314816973,0.06324629,3239.1,3238.6,3.11854267]
[1738314817172,0.06324629,3239.1,3238.6,6.17535]
[1738314817380,3.84528,3239.2,3238.6,6.17535]
[1738314817576,0.06310197,3239.0,3238.6,6.2062227]
[1738314817895,0.06310197,3238.9,3238.7,3.08763]
[1738314818187,0.7581,3239.2,3238.8,3.08756]
[1738314828014,0.06310197,3239.1,3238.8,3.08756]
[1738314830213,0.06310197,3239.1,3239.0,3.08737]
[1738314830512,0.7616,3239.4,3239.1,3.08725]
[1738314832314,0.7616,3239.4,3238.9,0.03087269]
[1738314832315,0.8168,3239.8,3239.3,0.7995]
[1738314832520,0.8168,3239.8,3239.6,3.08672]
[1738314832681,0.8168,3240.1,3239.6,3.08672]
[1738314833080,3.90315,3240.1,3239.4,3.0869]
[1738314833312,4.6059475,3240.1,3239.4,3.0869]
[1738314834482,4.6059475,3240.1,3239.5,3.08687]
[1738314835184,4.6059475,3240.1,3239.5,3.11773412]
[1738314835492,3.90315,3240.1,3239.5,3.11773412]
[1738314835886,3.90315,3240.1,3239.5,3.08687]
[1738314836241,3.90315,3240.1,3239.4,3.0869]
[1738314836415,3.08643,3240.0,3239.4,3.0869]
[1738314836618,3.90315,3240.1,3239.4,6.17381]
[1738314837120,3.90315,3240.1,3239.5,3.08687]
[1738314840420,3.90315,3240.1,3239.5,3.11773414]
[1738314841327,0.8168,3240.1,3239.6,3.08677]
[1738314841693,0.8111,3240.4,3239.9,3.08648]
[1738314841923,0.8111,3240.4,3240.0,3.08641]
[1738314843029,0.06058954,3240.3,3240.0,3.08641]
[1738314844014,0.06058954,3240.3,3239.9,0.03086072]
[1738314844207,3.14672954,3240.3,3239.7,0.7875]
[1738314844401,3.89721,3240.4,3239.6,3.08672]
[1738314844630,0.7523,3240.0,3239.5,8.45688]
[1738314844933,0.06080877,3239.9,3239.5,8.45688]
[1738314845088,0.06080877,3239.9,3239.5,5.37]
[1738314845493,3.08677,3239.7,3239.5,5.37]
[1738314845737,0.7885,3239.5,3238.9,6.1838]
[1738314845900,3.08699,3239.4,3238.9,5.37]
[1738314846104,0.06064933,3239.4,3238.9,8.4574]
[1738314846736,3.08708,3239.3,3238.9,5.37]
[1738314847031,3.87548,3239.5,3238.9,5.37]
[1738314847336,3.87548,3239.5,3238.9,5.40087093]
[1738314847499,0.06064933,3239.4,3238.9,5.40087093]
[1738314848031,0.06064933,3239.4,3238.9,5.37]
[1738314848935,0.06064933,3239.4,3238.9,0.03087093]
[1738314849135,0.06064933,3239.4,3239.0,3.08736]
[1738314849337,0.06064933,3239.4,3239.1,0.03086941]
[1738314850838,0.06064933,3239.4,3239.1,3.11812941]
[1738314851741,0.06064933,3239.4,3239.1,3.89282941]
[1738314851954,3.89368,3239.7,3239.1,3.89282941]
[1738314852517,3.0868,3239.6,3239.1,0.03086941]
[1738314852721,0.06064933,3239.3,3238.8,3.08754]
[1738314852910,3.08701,3239.4,3238.8,3.08754]
[1738314854345,3.08701,3239.4,3238.8,6.17502]
[1738314854753,0.7997,3239.5,3238.8,3.08748]
[1738314854938,0.7997,3239.5,3239.0,3.08735]
[1738314857959,0.06013598,3239.4,3239.0,3.08735]
[1738314858954,3.14713598,3239.4,3238.8,3.08748]
[1738314859527,3.14713598,3239.4,3238.8,3.1183503]
[1738314859832,3.14713598,3239.4,3238.8,3.11835031]
[1738314860246,3.14713598,3239.4,3238.9,3.08746]
[1738314860959,0.06013598,3239.4,3238.9,3.08746]
[1738314861147,0.06013598,3239.4,3239.0,3.08736]
[1738314862953,0.06013598,3239.4,3238.8,3.11837031]
[1738314863260,3.86808,3239.3,3238.7,3.08758]
[1738314863761,0.81853598,3239.2,3238.6,3.08774]
[1738314863922,3.90571598,3239.2,3238.6,3.08774]
[1738314865183,0.81853598,3239.2,3238.5,5.37]
[1738314865344,3.08746,3238.9,3238.1,5.37]
[1738314865667,0.8068,3238.3,3237.9,5.37]
[1738314865841,3.89484,3238.3,3237.9,5.37]
[1738314866047,0.05961249,3238.2,3237.9,5.37]
[1738314866248,0.8068,3238.3,3237.9,3.08835]
[1738314866448,0.05961249,3238.2,3238.0,3.08832]
[1738314866671,0.8068,3238.3,3238.0,3.08832]
[1738314866868,0.05961249,3238.2,3238.0,3.08832]
[1738314867177,0.8068,3238.3,3238.0,3.08832]
[1738314867678,0.05961249,3238.2,3238.0,3.08832]
[1738314868181,0.05961249,3238.1,3238.0,3.08832]
[1738314868353,0.8068,3238.3,3238.0,3.08832]
[1738314868560,0.05961249,3238.1,3238.0,3.08832]
[1738314868791,0.7556,3238.5,3238.0,3.08832]
[1738314868971,0.05961249,3238.1,3238.0,3.08832]
[1738314869160,0.7556,3238.5,3237.8,3.11938009]
[1738314869355,3.84351,3238.5,3237.9,3.08837]
[1738314869557,3.14755249,3238.4,3237.8,3.0885]
[1738314869761,0.05961249,3238.4,3237.8,3.0885]
[1738314870289,0.05961249,3238.4,3237.9,3.0884]
[1738314870651,0.05961249,3238.4,3237.8,3.0885]
[1738314870887,0.05961249,3238.4,3237.9,3.08841]
[1738314872380,0.05961249,3238.4,3237.8,3.0885]
[1738314872588,0.05961249,3238.4,3237.8,6.17693]
[1738314872762,0.05961249,3238.4,3237.8,3.08843]
[1738314872966,3.14758249,3238.4,3237.8,3.08843]
[1738314873168,0.05961249,3238.4,3237.8,3.08843]
[1738314874752,0.05961249,3238.4,3237.8,6.17687]
[1738314874948,3.14757249,3238.4,3237.8,3.08843]
[1738314875982,0.7641,3237.9,3237.5,3.0888]
[1738314876750,0.0590739,3237.8,3237.6,0.03088393]
[1738314876991,0.0590739,3237.8,3237.5,3.0888]
[1738314877787,0.0590739,3237.8,3237.5,3.08873]
[1738314877988,0.0590739,3237.8,3237.6,3.08869]
[1738314878966,0.0590739,3237.8,3237.7,3.11949401]
[1738314879163,0.0590739,3237.8,3237.7,6.02105472]
[1738314879371,0.7547,3238.2,3237.9,3.08833]
[1738314880160,0.7547,3238.2,3237.7,5.99017071]
[1738314880361,0.7547,3238.2,3237.8,3.08849]
[1738314880564,0.7547,3238.2,3237.7,5.99017071]
[1738314880893,0.7547,3238.2,3237.9,3.08837]
[1738314881093,0.7547,3238.2,3237.7,3.08861]
[1738314881306,0.7547,3238.2,3237.8,3.08847]
[1738314881864,0.7547,3238.2,3237.7,3.08861]
[1738314882287,4.227165,3238.2,3237.6,3.08867]
[1738314883494,4.26569001,3238.2,3237.6,3.08867]
[1738314883675,4.227165,3238.2,3237.6,3.08867]
[1738314885669,3.08826,3238.1,3237.6,3.08867]
[1738314886304,0.7737,3238.0,3237.6,3.08867]
[1738314886502,0.7737,3238.0,3237.5,8.45878]
[1738314887504,0.7737,3238.0,3237.5,3.08878]
[1738314887908,3.08948,3236.8,3236.2,1.235951]
[1738314888204,3.63926,3237.1,3236.2,1.235951]
[1738314888205,3.08993,3236.4,3236.2,1.235951]
[1738314888382,3.08993,3236.4,3235.7,0.03089929]
[1738314888586,3.89993,3236.1,3235.4,0.60253284]
[1738314888779,4.58602552,3236.1,3235.4,0.60253284]
[1738314888993,3.09024,3236.0,3235.4,0.60253284]
[1738314889196,0.03852501,3235.9,3235.4,0.60253284]
[1738314889394,3.18663791,3235.9,3235.4,0.60253284]
[1738314889696,3.1481129,3235.9,3235.1,3.12198561]
[1738314889892,3.1481129,3235.9,3235.3,3.09084]
[1738314890093,3.1481129,3235.9,3235.3,3.72089699]
[1738314890298,0.0577829,3235.9,3235.4,3.09074]
[1738314890528,3.89994,3236.1,3235.4,3.12164436]
[1738314890682,0.05738844,3235.8,3235.4,3.12164436]
[1738314890875,3.89994,3236.1,3235.4,3.09074]
[1738314891406,3.14762844,3236.0,3235.3,3.72089699]
[1738314891631,3.09033,3235.9,3235.3,3.72089699]
[1738314891834,0.05738844,3236.0,3235.3,3.75180138]
[1738314892125,3.09026,3236.0,3235.4,3.0908]
[1738314892277,0.05690907,3235.9,3235.4,3.0908]
[1738314892920,0.8098,3236.1,3235.4,3.0908]
[1738314893101,0.05690907,3236.0,3235.4,3.0908]
[1738314893592,0.05690907,3236.0,3235.5,3.0907]
[1738314895106,0.05690907,3236.0,3235.3,3.72094699]
[1738314895308,3.14716907,3236.0,3235.4,3.10125699]
[1738314895614,0.05690907,3236.0,3235.5,3.09068]
[1738314896188,0.05690907,3236.0,3235.6,3.09061]
[1738314898006,0.05690907,3236.0,3235.4,3.0908]
[1738314898311,0.05690907,3236.0,3235.5,3.09069]
[1738314899079,0.05690907,3236.0,3235.6,3.09059]
[1738314899276,0.05690907,3236.0,3235.9,3.09033]
[1738314899477,0.05690907,3236.0,3235.9,5.99189071]
[1738314899678,0.8133,3237.1,3235.9,9.03028675]
[1738314899912,0.05286219,3237.0,3236.6,3.08957]
[1738314900221,0.05286219,3237.0,3236.8,3.08944]
[1738314900395,0.05286219,3237.0,3236.7,0.03089265]
[1738314900593,0.8133,3237.1,3236.6,3.08963]
[1738314900995,0.05299722,3237.0,3236.6,3.08963]
[1738314901383,0.05299722,3237.0,3236.7,0.0308921]
[1738314901583,0.05299722,3237.0,3236.7,3.0895]
[1738314902498,3.14228722,3237.0,3236.4,3.08977]
[1738314903018,3.14228722,3237.0,3236.3,8.45993]
[1738314903409,3.08938,3236.9,3236.3,8.45993]
[1738314903794,3.79771922,3236.9,3236.3,8.45993]
[1738314904091,3.93796223,3236.8,3236.3,5.37]
[1738314905119,3.93796223,3236.8,3236.2,3.09004]
[1738314905319,3.08964,3236.7,3236.1,3.09011]
[1738314905484,3.08964,3236.7,3235.9,8.4603]
[1738314905485,3.12824501,3236.6,3235.9,8.4603]
[1738314905888,0.0532772,3236.5,3235.9,8.4603]
[1738314906122,0.768,3236.4,3235.9,8.4603]
[1738314906617,0.0532772,3236.3,3236.0,3.09022]
[1738314907000,0.0532772,3236.3,3236.1,3.09013]
[1738314908723,0.0532772,3236.3,3236.2,3.09004]
[1738314909834,0.0532772,3236.3,3236.0,3.09019]
[1738314909997,0.0532772,3236.3,3235.9,3.09029]
[1738314910592,0.768,3236.4,3236.0,3.09017]
[1738314910830,0.0532772,3236.3,3236.0,3.09017]
[1738314911226,0.0532772,3236.3,3235.9,3.09029]
[1738314911619,3.53433292,3236.3,3235.8,0.61849423]
[1738314911823,0.03852501,3236.2,3235.4,8.46076]
[1738314912132,3.8455,3236.2,3235.5,3.09064]
[1738314912298,0.05299722,3236.1,3235.5,3.09064]
[1738314912497,3.0902,3236.1,3235.7,0.62170464]
[1738314912719,0.09152223,3236.0,3235.7,0.62170464]
[1738314912920,0.05299722,3236.0,3235.7,0.62170464]
[1738314914604,0.05299722,3236.0,3235.6,3.09057]
[1738314915653,0.05299722,3236.0,3235.6,3.70254928]
[1738314918251,0.05299722,3236.0,3235.6,0.61197928]
[1738314919531,0.05299722,3236.0,3235.6,3.70252928]
[1738314919934,0.7554,3236.2,3235.6,3.70252928]
[1738314920136,0.05299722,3236.1,3235.6,3.70252928]
[1738314920730,0.05299722,3236.1,3235.6,0.64288368]
[1738314920930,0.8194,3236.5,3236.0,3.09023]
[1738314921142,0.8194,3236.5,3236.1,3.09009]
[1738314922041,0.8194,3236.5,3236.0,3.12112937]
[1738314922241,0.8194,3236.5,3236.2,3.09003]
[1738314923245,0.8194,3236.5,3236.3,3.0899]
[1738314923453,0.794,3236.9,3236.3,3.0899]
[1738314923623,0.794,3236.9,3236.4,3.08984]
[1738314923826,0.794,3236.9,3236.5,3.08973]
[1738314924226,3.88338,3236.9,3236.3,3.08987]
[1738314925041,0.794,3236.9,3236.3,3.08987]
[1738314925442,0.794,3236.9,3236.2,3.09]
[1738314925666,0.794,3236.9,3236.4,3.08983]
[1738314925869,3.84267,3237.4,3236.7,3.08955]
[1738314926181,3.84267,3237.4,3236.8,3.08946]
[1738314926333,3.089,3237.3,3236.7,3.08955]
[1738314927265,3.12763501,3237.2,3236.7,3.08955]
[1738314928363,0.03852501,3237.2,3236.7,3.08955]
[1738314928565,3.08901,3237.3,3236.7,3.08955]
[1738314928731,0.05333722,3237.1,3236.7,3.08955]
[1738314928932,3.08901,3237.3,3236.7,3.08955]
[1738314929160,0.05333722,3237.0,3236.7,3.08955]
[1738314929363,3.08901,3237.3,3236.7,3.08955]
[1738314929669,0.05333722,3237.2,3236.7,3.08955]
[1738314930435,0.05333722,3237.2,3236.7,6.17903]
[1738314930768,0.05333722,3237.2,3236.7,3.08948]
[1738314931832,0.05333722,3237.2,3236.8,3.08944]
[1738314932033,0.05333722,3237.2,3236.9,3.08937]
[1738314932268,0.7537,3237.4,3236.9,3.08937]
[1738314932472,0.05337722,3237.1,3237.0,3.08928]
[1738314932675,3.08864,3237.7,3237.1,3.08916]
[1738314932983,3.94771223,3237.6,3236.9,3.0893]
[1738314933163,3.90918722,3237.6,3237.0,3.08918]
[1738314934449,3.0889,3237.4,3236.8,3.08946]
[1738314934940,0.05337722,3237.3,3236.8,3.08946]
[1738314935493,0.05337722,3237.3,3236.9,3.08934]
[1738314935842,3.85581,3237.6,3236.8,3.12035081]
[1738314936171,0.7671,3237.6,3237.1,3.08918]
[1738314936364,0.05347218,3237.5,3237.1,3.08918]
[1738314936991,0.05347218,3237.5,3237.2,3.08907]
[1738314937693,0.05347218,3237.5,3237.4,3.08889]
[1738314938038,0.7763,3237.8,3237.4,3.08889]
[1738314938039,0.7763,3237.8,3237.5,3.08871]
[1738314938582,0.8308,3238.1,3237.6,3.08868]
[1738314938981,0.8308,3238.1,3237.8,3.08851]
[1738314939176,3.08797,3238.4,3237.2,3.8247]
[1738314939177,3.95740501,3238.3,3237.6,3.08862]
[1738314939378,3.08825,3238.1,3237.5,5.37]
[1738314939544,3.08825,3238.1,3237.5,8.45871]
[1738314939741,3.91884,3238.3,3237.6,3.11951515]
[1738314939940,0.8308,3238.3,3237.8,3.08844]
[1738314940374,0.8308,3238.3,3237.8,3.08849]
[1738314940575,1.531464,3238.3,3237.8,3.08849]
[1738314942390,1.531464,3238.3,3237.7,3.0886]
[1738314943590,1.56998901,3238.3,3237.6,3.0]
[1738314943923,3.14249179,3238.2,3237.6,3.0]
[1738314944694,0.05433179,3238.2,3237.6,6.08864]
[1738314944866,0.05433179,3238.2,3237.7,3.08854]
[1738314945073,4.619524,3238.3,3237.7,3.08854]
[1738314945281,0.05433179,3238.1,3237.7,3.08854]
[1738314945612,0.05433179,3238.0,3237.7,3.08854]
[1738314945758,3.91886,3238.3,3237.7,3.08854]
[1738314945955,0.05433179,3238.2,3237.7,3.08854]
[1738314946621,0.05433179,3238.2,3237.9,3.0884]
[1738314946827,0.8308,3238.3,3237.9,3.0884]
[1738314947499,0.05433179,3238.2,3237.9,3.0884]
[1738314948019,0.05245134,3238.1,3238.0,0.03088106]
[1738314948326,0.7764,3238.7,3238.0,3.66636071]
[1738314948467,0.7764,3238.7,3238.4,3.08786]
[1738314948666,0.05251155,3238.6,3238.4,3.08786]
[1738314948895,0.05251155,3238.6,3238.5,3.11871513]
[1738314949075,0.7724,3239.0,3238.5,3.11871513]
[1738314949076,0.7724,3239.0,3238.5,3.08784]
[1738314951631,0.7724,3239.0,3238.6,3.11861431]
[1738314951810,0.05314665,3238.9,3238.8,3.0875]
[1738314951991,0.7721,3239.3,3238.8,3.0875]
[1738314952198,0.05133165,3239.2,3238.8,3.0875]
[1738314952533,0.7721,3239.3,3238.8,3.0875]
[1738314952744,0.05133165,3239.1,3238.9,3.0874]
[1738314952917,0.7721,3239.3,3238.9,3.0874]
[1738314953427,0.05137165,3239.2,3238.9,3.0874]
[1738314953592,0.7721,3239.3,3238.9,3.0874]
[1738314953799,0.05137165,3239.2,3239.0,3.08736]
[1738314954000,0.7721,3239.3,3239.0,3.08736]
[1738314954212,0.05137165,3239.2,3239.0,3.08736]
[1738314954698,0.7721,3239.3,3239.0,3.08736]
[1738314954900,0.05137165,3239.1,3239.0,3.08736]
[1738314955105,0.7576,3239.6,3239.3,3.08702]
[1738314955301,0.7576,3239.9,3239.5,3.08689]
[1738314956033,0.7576,3239.9,3239.6,3.08679]
[1738314956238,0.7576,3239.9,3239.5,3.08689]
[1738314958127,0.7576,3239.9,3239.3,3.08706]
[1738314959384,0.7576,3239.9,3239.4,3.08698]
[1738314960453,3.08672,3239.7,3239.2,3.0]
[1738314960644,3.08667,3239.8,3239.2,3.0]
[1738314960953,3.08686,3239.6,3239.2,3.0]
[1738314961354,3.08686,3239.6,3239.1,5.37]
[1738314961601,0.80992501,3239.5,3239.1,5.37]
[1738314961894,3.087,3239.4,3239.1,5.37]
[1738314962450,0.80992501,3239.5,3239.1,5.37]
[1738314962983,0.05206146,3239.4,3239.1,5.37]
[1738314963340,3.08718,3239.2,3239.1,5.37]
[1738314963561,3.94097153,3239.2,3239.1,5.37]
[1738314964447,3.08752,3238.9,3238.1,3.08815]
[1738314964645,3.08779,3238.6,3237.8,9.24566]
[1738314964980,3.08814,3238.2,3237.8,5.37]
[1738314965183,0.05159163,3238.1,3237.6,3.69958896]
[1738314965477,3.08823,3238.1,3237.6,3.08867]
[1738314965685,3.92421501,3238.3,3237.7,3.0]
[1738314965994,3.08815,3238.2,3237.7,3.0]
[1738314966195,3.88569,3238.3,3237.7,3.0]
[1738314966596,0.05137164,3238.2,3237.7,3.0]
[1738314966996,3.08823,3238.1,3237.5,3.0]
[1738314967205,3.08823,3238.1,3237.5,3.08878]
[1738314967420,0.05137164,3238.0,3237.4,3.08881]
[1738314967581,0.7727,3237.9,3237.4,3.08881]
[1738314967784,0.05088161,3237.8,3237.4,3.08881]
[1738314967980,0.05088161,3237.8,3237.2,9.07091712]
[1738314968188,0.03852501,3237.8,3237.2,8.45907]
[1738314968692,3.0888,3237.5,3236.8,8.45939]
[1738314968891,3.12732501,3237.5,3236.8,8.45939]
[1738314969215,0.05057152,3237.4,3236.8,8.45939]
[1738314969916,0.05057152,3237.4,3236.9,3.08937]
[1738314971023,3.12753501,3237.3,3236.8,5.37]
[1738314971196,0.05030638,3237.2,3236.8,5.37]
[1738314971395,3.12753501,3237.3,3236.8,5.37]
[1738314971589,0.05005122,3237.2,3236.8,5.37]
[1738314971790,3.12753501,3237.3,3236.8,5.37]
[1738314972008,0.05005122,3237.2,3236.8,5.37]
[1738314972194,0.7619,3237.1,3236.8,5.37]
[1738314972396,0.05005122,3237.0,3236.8,5.37]
[1738314973479,0.05005122,3237.0,3236.6,3.08966]
[1738314974132,0.05005122,3237.0,3236.7,3.08956]
[1738314975417,0.04992611,3236.9,3236.7,3.08956]
[1738314975624,0.7619,3237.1,3236.7,3.08956]
[1738314975803,0.04992611,3237.0,3236.7,3.08956]
[1738314976522,0.04992611,3237.0,3236.9,3.08937]
[1738314976924,0.798,3237.5,3236.9,3.08937]
[1738314977088,0.04960079,3237.0,3236.9,3.08937]
[1738314977288,0.798,3237.5,3236.9,3.08937]
[1738314977507,0.04960079,3237.0,3236.9,3.08937]
[1738314977707,0.798,3237.5,3236.9,3.08937]
[1738314977910,0.04960079,3237.0,3236.9,3.08937]
[1738314978101,0.798,3237.5,3236.9,3.08937]
[1738314978315,0.04960079,3237.0,3236.9,3.08937]
[1738314978827,0.798,3237.5,3236.9,3.08937]
[1738314978995,0.04966586,3237.4,3236.9,3.08937]
[1738314979321,3.17709087,3237.4,3236.7,3.08956]
[1738314979513,3.089,3237.3,3236.7,3.08956]
[1738314979884,0.798,3237.5,3236.8,3.08946]
[1738314979885,0.04976596,3237.2,3236.8,3.08946]
[1738314980322,3.88686,3237.5,3236.8,3.08946]
[1738314980521,0.04976596,3237.1,3236.8,3.08946]
[1738314980714,3.12742501,3237.4,3236.8,3.08946]
[1738314981119,0.04973593,3237.3,3236.8,3.08946]
[1738314984652,0.04973593,3237.3,3236.6,5.37]
[1738314984653,0.08826094,3237.3,3236.6,5.37]
[1738314984858,0.48577703,3237.3,3236.6,5.37]
[1738314985028,3.08929,3237.0,3236.6,5.37]
[1738314985230,3.08954,3236.8,3236.2,3.08995]
[1738314985551,0.761,3236.7,3236.2,3.08995]
[1738314986739,0.03852501,3236.6,3236.0,0.7624]
[1738314986945,3.08976,3236.5,3235.9,8.46025]
[1738314987127,0.03852501,3236.4,3235.9,5.37]
[1738314987327,3.89921,3236.3,3235.9,5.37]
[1738314987851,3.09025,3236.0,3235.4,3.09076]
[1738314988054,0.0476049,3235.9,3235.6,3.09053]
[1738314988229,3.09011,3236.2,3235.6,3.09053]
[1738314988429,0.0476049,3236.1,3235.6,3.09053]
[1738314990363,0.0476049,3236.1,3235.6,3.12143287]
[1738314990878,0.0476049,3236.1,3235.6,3.09053]
[1738314991041,3.12863501,3236.2,3235.6,3.09053]
[1738314991243,3.1377849,3236.1,3235.4,3.09076]
[1738314991457,0.0476049,3236.1,3235.4,3.09076]
[1738314992578,0.0476049,3236.1,3235.6,3.09055]
[1738314993882,0.0476049,3236.1,3235.7,3.0905]
[1738314996073,0.0476049,3236.1,3235.4,3.09077]
[1738314996244,0.0476049,3236.1,3235.6,3.09055]
[1738314997014,0.4808214,3236.1,3235.6,3.09055]
[1738314997592,0.4808214,3236.1,3235.4,3.09077]
[1738314997794,0.7914,3236.0,3235.4,3.09077]
[1738314998122,0.04742443,3235.9,3235.4,3.09077]
[1738314998497,0.7914,3236.0,3235.4,3.09077]
[1738314998888,0.04742443,3235.9,3235.4,3.09077]
[1738314999390,0.7914,3236.0,3235.4,3.09077]
[1738314999590,0.04742443,3235.9,3235.4,3.09077]
[1738315000497,0.08594944,3235.9,3235.4,3.09077]
[1738315000733,0.04742443,3235.9,3235.4,3.09077]
[1738315001094,0.04742443,3235.9,3235.6,3.09061]
[1738315001298,0.7914,3236.0,3235.6,3.09061]
[1738315001533,0.04742443,3235.8,3235.6,3.09061]
[1738315001721,0.7914,3236.0,3235.6,3.09061]
[1738315001908,0.04742443,3235.7,3235.6,3.09061]
[1738315002109,0.7914,3236.0,3235.6,3.09061]
[1738315002633,0.04742443,3235.9,3235.6,3.09061]
[1738315004229,0.7914,3236.0,3235.6,3.09061]
[1738315005655,0.7914,3236.0,3235.4,3.09077]
[1738315005803,0.04686811,3235.9,3235.4,6.18149]
[1738315006514,0.04686811,3235.9,3235.5,3.09069]
[1738315008014,3.88167,3236.0,3235.5,3.09069]
[1738315008438,0.04686811,3235.9,3235.5,3.09069]
[1738315009227,0.8163,3235.6,3235.1,8.46101]
[1738315009626,0.8163,3235.6,3235.0,0.0031]
[1738315009627,0.04684806,3235.5,3235.0,3.0031]
[1738315009842,3.09079,3235.5,3235.0,3.0031]
[1738315010171,0.04684806,3235.4,3235.0,3.0031]
[1738315010319,3.0909,3235.3,3235.0,0.0031]
[1738315010765,0.04674779,3235.2,3235.0,0.0031]
[1738315011172,3.12931501,3235.5,3235.0,0.0031]
[1738315011370,0.04674779,3235.1,3235.0,0.0031]
[1738315011577,3.12931501,3235.5,3235.0,0.0031]
[1738315012156,0.04674779,3235.4,3235.0,0.0031]
[1738315012382,0.04674779,3235.4,3235.2,3.87019]
[1738315012723,3.87273,3235.9,3235.2,3.09099]
[1738315012943,0.04470505,3235.3,3235.1,3.0]
[1738315013123,0.7824,3235.4,3235.1,3.0]
[1738315013335,0.04470505,3235.2,3235.1,3.0]
[1738315013538,0.7824,3235.4,3235.1,6.09109]
[1738315013746,0.04470505,3235.2,3235.1,6.09109]
[1738315013937,0.7824,3235.4,3235.1,6.09109]
[1738315014325,0.04470505,3235.3,3235.1,6.09109]
[1738315015128,0.04470505,3235.3,3235.2,3.09099]
[1738315015563,0.7758,3235.7,3235.2,3.09099]
[1738315016058,0.04478537,3235.6,3235.1,6.09109]
[1738315018562,3.13547537,3235.6,3235.1,3.0]
[1738315018740,0.04478537,3235.6,3235.1,6.09107]
[1738315019433,3.13547537,3235.6,3235.1,3.0]
[1738315020066,0.04478537,3235.6,3235.1,3.0]
[1738315020266,0.04478537,3235.6,3235.1,6.09103]
[1738315021164,0.04478537,3235.6,3235.2,3.09097]
[1738315021681,0.04478537,3235.6,3235.1,6.09103]
[1738315022138,0.04478537,3235.6,3235.2,0.28934889]
[1738315023537,0.04478537,3235.6,3235.3,0.28934889]
[1738315023764,0.43975241,3235.6,3235.3,0.28934889]
[1738315024836,0.04478537,3235.6,3235.3,3.38022889]
[1738315025275,0.04478537,3235.6,3235.4,0.28934889]
[1738315025471,0.04478537,3235.6,3235.5,3.09071]
[1738315025650,0.8001,3236.1,3235.5,3.09071]
[1738315025850,0.04477533,3236.0,3235.7,3.09046]
[1738315026569,0.04477533,3236.0,3235.8,0.28934889]
[1738315027137,0.04477533,3236.0,3235.9,3.09033]
[1738315027536,0.8001,3236.4,3236.1,3.09013]
[1738315027763,0.04491587,3236.0,3235.9,3.09033]
[1738315027953,0.04491587,3236.0,3235.8,1.08554889]
[1738315027954,0.8001,3236.4,3236.2,3.09002]
[1738315028155,0.7767,3236.8,3236.3,3.08994]
[1738315028563,0.04491587,3236.7,3236.4,3.08978]
[1738315028863,0.7767,3236.8,3236.6,3.08966]
[1738315029058,0.7655,3237.2,3236.7,3.08956]
[1738315029263,1.21228754,3237.2,3236.7,3.08956]
[1738315029663,1.21228754,3237.2,3236.7,3.37890889]
[1738315030072,1.21228754,3237.2,3236.8,3.08944]
[1738315030277,0.7655,3237.2,3236.8,3.08944]
[1738315030571,0.7655,3237.2,3236.7,0.28934889]
[1738315030572,0.03852501,3237.1,3236.7,0.28934889]
[1738315030959,3.12774501,3237.1,3236.7,0.28934889]
[1738315031279,3.12774501,3237.1,3236.8,0.28934889]
[1738315032676,3.12774501,3237.1,3236.9,0.28934889]
[1738315032867,3.82596951,3237.1,3236.9,0.28934889]
[1738315034375,0.7655,3237.2,3236.7,3.08956]
[1738315035684,3.12772501,3237.1,3236.6,0.28934889]
[1738315035881,3.12772501,3237.1,3236.8,0.28934889]
[1738315037378,3.12772501,3237.1,3236.6,0.28934889]
[1738315037947,0.0453173,3237.0,3236.6,3.37895889]
[1738315038143,0.0453173,3237.0,3236.6,6.46855889]
[1738315038347,3.85462,3237.2,3236.6,3.37894889]
[1738315038579,0.0453173,3236.9,3236.6,3.37894889]
[1738315038782,3.85462,3237.2,3236.6,3.37894889]
[1738315038952,0.0453173,3236.8,3236.7,6.08956]